bitfinex/quotes_ETHUSD_20240716
["timestamp","ask_amount","ask_price","bid_price","bid_amount"]
[1721151775332,0.0171632,3474.9,3474.5,2.87805]
[1721151775624,0.0171632,3474.9,3474.3,2.87824]
[1721151776305,0.0171632,3474.9,3474.4,2.87819]
[1721151776505,0.0171632,3474.9,3474.5,2.8781]
[1721151776753,0.0171632,3474.9,3474.8,2.87786]
[1721151778199,0.0171632,3474.9,3474.8,5.75572]
[1721151779802,2.2527,3474.8,3473.5,6.91092965]
[1721151780020,2.2527,3474.8,3473.8,2.87863]
[1721151780021,2.87803,3474.6,3473.8,2.87863]
[1721151780521,2.87803,3474.6,3473.9,2.8786]
[1721151781118,5.13056,3474.8,3474.0,2.87852]
[1721151781345,2.87795,3474.7,3474.0,2.87852]
[1721151781571,5.13056,3474.8,3474.1,2.87843]
[1721151781717,2.2527,3474.8,3474.1,2.87844]
[1721151781906,2.2527,3474.8,3474.2,2.87835]
[1721151782413,5.13056,3474.8,3474.1,2.87844]
[1721151783840,5.13056,3474.8,3473.9,2.87857]
[1721151783841,5.13056,3474.8,3474.2,2.87835]
[1721151784451,2.2527,3474.8,3474.2,2.87835]
[1721151784627,2.2527,3474.8,3474.4,2.87814]
[1721151784832,0.0171632,3474.9,3474.4,2.87814]
[1721151785220,0.0171632,3474.9,3474.5,2.8781]
[1721151786038,0.0171632,3474.9,3474.4,2.87813]
[1721151786655,0.0171632,3474.9,3474.6,2.87802]
[1721151787556,0.0171632,3474.9,3474.6,3.453634]
[1721151787757,0.0171632,3474.9,3474.8,2.87786]
[1721151790067,0.0171632,3474.9,3474.7,2.87793]
[1721151790857,0.0171632,3474.9,3474.5,2.87804]
[1721151791055,0.0171632,3474.9,3474.6,2.87798]
[1721151792028,0.0171632,3474.9,3474.7,2.87792]
[1721151792336,0.0171632,3474.9,3474.7,3.453516]
[1721151793043,0.0171632,3474.9,3474.7,6.331376]
[1721151793257,0.0171632,3474.9,3474.7,3.453456]
[1721151793572,0.0171632,3474.9,3474.8,2.87786]
[1721151794550,0.0171632,3474.9,3474.7,2.87786]
[1721151794551,0.0171632,3474.9,3474.7,2.87791]
[1721151794712,0.0171632,3474.9,3474.8,2.87786]
[1721151795780,0.0171632,3474.9,3474.3,2.87824]
[1721151795967,0.0171632,3474.9,3474.5,2.87809]
[1721151796302,0.0171632,3474.9,3474.5,2.87804]
[1721151796464,0.0171632,3474.9,3474.6,0.287804]
[1721151797376,0.0171632,3474.9,3474.7,2.87794]
[1721151797568,0.0171632,3474.9,3474.5,5.75607]
[1721151797782,0.0171632,3474.9,3474.6,2.87802]
[1721151798490,2.4914,3474.8,3474.4,2.87818]
[1721151800806,2.4914,3474.8,3474.3,2.87827]
[1721151801498,5.3693,3474.8,3474.0,2.87848]
[1721151801714,2.4914,3474.8,3474.2,2.87831]
[1721151803088,2.4914,3474.8,3474.2,5.7566]
[1721151803287,5.36927,3474.8,3474.2,2.87829]
[1721151803936,2.4914,3474.8,3474.2,2.87829]
[1721151804106,2.4914,3474.8,3474.3,2.87825]
[1721151804491,2.4914,3474.8,3474.4,2.87812]
[1721151804829,2.4914,3474.8,3474.5,2.8781]
[1721151807919,2.4914,3474.8,3474.3,0.6735481]
[1721151808128,2.4914,3474.8,3474.2,2.87831]
[1721151808129,7.18056136,3474.8,3474.1,2.87839]
[1721151808533,5.36931,3474.8,3474.1,2.87839]
[1721151808725,5.36931,3474.8,3474.2,2.87833]
[1721151808933,2.4914,3474.8,3474.2,2.87833]
[1721151809241,1.82841456,3474.9,3474.6,2.87799]
[1721151809242,0.0171632,3474.9,3474.6,2.87799]
[1721151809446,0.0171632,3474.9,3474.4,2.87815]
[1721151809652,1.82841456,3474.9,3474.5,2.8781]
[1721151810146,1.82895592,3474.9,3474.5,2.8781]
[1721151810955,0.0171632,3474.9,3474.5,2.8781]
[1721151811403,1.81179272,3475.1,3474.5,2.8781]
[1721151811404,1.72895592,3475.1,3474.5,2.8781]
[1721151811607,1.72895592,3475.1,3473.7,4.8344]
[1721151811608,1.72895592,3475.1,3474.6,3.453586]
[1721151811941,7.43675818,3475.4,3474.8,2.8778]
[1721151811942,2.4456,3475.4,3474.8,2.8778]
[1721151812139,2.4456,3475.4,3474.9,2.87772]
[1721151812443,5.14126688,3475.6,3474.9,2.87772]
[1721151812804,4.99104818,3475.5,3474.9,2.87772]
[1721151813009,4.99104818,3475.5,3474.6,2.87798]
[1721151813010,4.99104818,3475.5,3474.7,2.87787]
[1721151813311,4.99104825,3475.5,3474.7,2.87787]
[1721151813635,4.99104825,3475.5,3474.8,2.87784]
[1721151813838,2.87754,3475.2,3474.6,2.87802]
[1721151814355,2.11375825,3475.5,3474.5,2.87806]
[1721151814645,3.0274787,3475.6,3474.7,2.87793]
[1721151814646,2.82742,3475.4,3474.7,2.87793]
[1721151814804,2.87752,3475.3,3474.7,2.87793]
[1721151815839,2.87738,3475.4,3474.7,2.87793]
[1721151816142,2.87747,3475.3,3474.7,2.87793]
[1721151816649,4.99148043,3475.5,3474.7,2.87793]
[1721151816806,2.11419043,3475.5,3474.9,2.87776]
[1721151817007,2.11419043,3475.5,3475.0,2.87769]
[1721151817282,2.11419043,3475.5,3474.8,2.87779]
[1721151817425,1.81241783,3475.2,3474.9,2.87772]
[1721151819423,1.81241783,3475.2,3474.5,3.85692897]
[1721151819611,2.87749,3475.3,3474.6,2.87799]
[1721151819809,1.81263639,3475.1,3474.6,2.87799]
[1721151821310,4.69025639,3475.1,3474.4,2.87818]
[1721151821608,4.69041639,3474.9,3474.2,9.78925965]
[1721151821814,1.81263639,3474.8,3474.2,2.87833]
[1721151822239,2.87794,3474.7,3474.0,2.87848]
[1721151822436,2.87794,3474.7,3473.8,2.87867]
[1721151822437,4.69057639,3474.7,3473.8,2.87864]
[1721151822623,4.69057639,3474.7,3473.9,0.533364]
[1721151822831,1.81307086,3474.6,3473.9,0.533364]
[1721151823355,1.81307086,3474.6,3474.0,2.8785]
[1721151824138,2.11524934,3474.9,3473.9,0.533364]
[1721151824139,1.81307086,3474.9,3474.5,2.8781]
[1721151824330,1.81307086,3474.9,3474.5,3.16591]
[1721151825227,2.8775,3475.3,3474.5,3.16586]
[1721151825228,1.81307086,3475.0,3474.5,3.16586]
[1721151825550,1.81307086,3475.0,3474.6,2.87801]
[1721151825946,2.87753,3475.2,3474.6,2.87801]
[1721151826146,1.813003,3475.0,3474.6,2.87801]
[1721151827752,1.813003,3475.0,3474.5,3.16586]
[1721151827958,1.813003,3474.9,3474.5,3.16586]
[1721151828460,1.813003,3474.9,3474.3,2.87824]
[1721151828658,1.813003,3474.9,3474.5,2.87804]
[1721151828819,1.813003,3474.9,3474.6,2.87802]
[1721151830959,1.610883,3474.9,3474.7,2.87788]
[1721151832313,2.4884,3475.4,3474.8,2.87786]
[1721151832539,2.1164562,3475.4,3475.0,2.87769]
[1721151832924,2.1164562,3475.5,3475.0,2.87769]
[1721151833956,2.1164562,3475.5,3475.1,2.87761]
[1721151834118,2.2666949,3475.6,3475.1,2.87761]
[1721151834314,2.2666949,3475.6,3475.2,2.87752]
[1721151835318,2.1164562,3475.5,3475.2,2.87752]
[1721151835651,2.1160606,3475.5,3475.2,6.330491]
[1721151835954,0.1502387,3475.6,3475.5,2.87728]
[1721151836652,0.1502387,3475.6,3475.5,5.75456]
[1721151837456,0.1502387,3475.6,3475.5,8.63184]
[1721151837956,0.1502387,3475.6,3475.5,13.83682]
[1721151838157,0.1502387,3475.6,3475.5,19.1574941]
[1721151838373,0.1502387,3475.6,3475.5,22.7074941]
[1721151842117,0.1502387,3475.6,3475.5,19.8302141]
[1721151842273,0.1502387,3475.6,3475.5,16.2382141]
[1721151844169,0.1502387,3475.6,3475.5,22.1574941]
[1721151844370,0.1502387,3475.6,3475.5,22.7074941]
[1721151844553,0.1502387,3475.6,3475.5,22.7624941]
[1721151844756,0.1502387,3475.6,3475.5,25.2174941]
[1721151845288,8.7e-06,3475.6,3475.5,25.2174941]
[1721151845493,8.7e-06,3475.6,3475.5,28.0947741]
[1721151845781,2.3703,3477.6,3477.0,2.87598]
[1721151846171,0.02595218,3477.5,3477.0,2.87602]
[1721151846376,2.3703,3477.6,3477.0,2.87602]
[1721151846377,5.24585,3477.6,3477.0,2.87602]
[1721151846576,0.02595218,3477.4,3477.0,2.87602]
[1721151846748,2.3703,3477.6,3477.0,2.87602]
[1721151846948,0.02595218,3477.3,3477.0,2.87602]
[1721151847268,2.3703,3477.6,3477.0,2.87602]
[1721151847269,0.02595218,3477.2,3477.0,2.87602]
[1721151847475,2.3703,3477.6,3477.0,2.87602]
[1721151847776,0.02595218,3477.1,3477.0,2.87602]
[1721151847974,2.3703,3477.6,3477.0,2.87602]
[1721151848443,0.02595218,3477.5,3477.0,2.87602]
[1721151849483,2.87571,3477.4,3476.6,2.87632]
[1721151849697,2.87571,3477.4,3476.4,9.78744965]
[1721151849698,2.87588,3477.2,3476.4,6.91092965]
[1721151849993,2.87588,3477.2,3476.0,5.33183]
[1721151850305,2.87607,3477.0,3476.2,2.87665]
[1721151850661,2.87607,3477.0,3476.3,2.87657]
[1721151850893,0.02596221,3476.9,3476.3,2.87657]
[1721151851083,0.02596221,3476.9,3476.4,2.87651]
[1721151851451,2.87588,3477.2,3476.6,2.87637]
[1721151851803,0.02596221,3476.8,3476.5,2.8764]
[1721151851989,2.4335,3477.3,3476.7,2.87626]
[1721151852169,5.30929,3477.3,3476.7,2.87626]
[1721151852381,2.87589,3477.2,3476.6,2.87636]
[1721151852691,2.4335,3477.3,3476.6,2.87636]
[1721151853411,2.4335,3477.3,3476.8,2.8762]
[1721151853596,2.3438,3477.7,3476.8,2.8762]
[1721151853890,0.02592811,3477.6,3477.0,2.87603]
[1721151854191,0.02592811,3477.6,3476.8,2.87612]
[1721151854392,2.87572,3477.4,3476.8,2.87612]
[1721151854712,2.4693,3477.3,3476.6,2.87631]
[1721151854919,2.49522811,3477.3,3476.6,2.87631]
[1721151855227,2.49522811,3477.3,3476.5,2.8764]
[1721151855228,2.87592,3477.2,3476.5,2.8764]
[1721151855713,5.34509,3477.3,3476.8,2.87619]
[1721151855714,0.02592811,3477.1,3476.8,2.87619]
[1721151855876,2.4693,3477.3,3476.8,2.87619]
[1721151856071,0.02592811,3477.0,3476.8,2.87619]
[1721151856312,2.4693,3477.3,3476.8,2.87619]
[1721151856606,0.02592811,3476.9,3476.8,2.87619]
[1721151856816,2.4693,3477.3,3476.8,2.87619]
[1721151856973,0.02592811,3476.9,3476.8,2.87619]
[1721151857187,2.87541,3477.8,3476.8,2.87619]
[1721151857188,5.33089,3477.7,3477.0,2.87603]
[1721151857618,0.02592811,3477.6,3477.0,2.87603]
[1721151859638,0.02592811,3477.6,3477.1,2.87595]
[1721151860735,2.87515,3478.1,3477.3,2.87574]
[1721151860971,11.4002,3479.0,3477.6,2.455]
[1721151861095,11.4002,3479.0,3477.8,2.87537]
[1721151861096,2.87486,3478.5,3477.8,2.87537]
[1721151861425,5.74974,3478.5,3477.8,2.87537]
[1721151861594,5.74974,3478.5,3477.1,2.87592]
[1721151861595,2.8751,3478.2,3477.3,2.87575]
[1721151861801,2.8751,3478.2,3477.5,2.87557]
[1721151862596,2.8751,3478.2,3477.5,2.87555]
[1721151863840,2.8751,3478.2,3477.6,2.87553]
[1721151864937,2.8751,3478.2,3477.4,2.87571]
[1721151865248,2.8751,3478.2,3477.5,2.87562]
[1721151865409,5.22512,3478.4,3476.8,4.7583]
[1721151865410,2.87536,3477.9,3476.8,4.7583]
[1721151865611,2.87539,3477.8,3477.1,2.87592]
[1721151865812,5.29349,3477.8,3477.1,2.87592]
[1721151866011,8.16895,3477.8,3477.1,2.87592]
[1721151866215,2.87555,3477.6,3476.8,5.33114]
[1721151866610,2.87555,3477.6,3476.9,2.87612]
[1721151866946,2.87563,3477.5,3476.7,9.78714965]
[1721151867251,2.87563,3477.5,3476.7,2.87622]
[1721151867935,2.87605,3477.0,3476.2,2.87665]
[1721151868101,2.87638,3476.6,3476.1,6.91092965]
[1721151868438,2.87638,3476.6,3475.8,2.87697]
[1721151868732,2.87654,3476.4,3475.8,2.87703]
[1721151869119,2.87621,3476.8,3475.8,2.87703]
[1721151869335,2.87639,3476.6,3476.0,2.87685]
[1721151869625,2.87621,3476.8,3476.0,3.452238]
[1721151869931,2.87621,3476.8,3476.0,0.575388]
[1721151869932,2.87636,3476.7,3476.0,0.575388]
[1721151870135,2.87636,3476.7,3475.6,2.455]
[1721151870136,2.87654,3476.4,3475.6,5.33217]
[1721151870340,2.87654,3476.4,3475.8,2.87702]
[1721151872138,2.87654,3476.4,3475.6,5.33217]
[1721151872336,2.87654,3476.4,3475.6,8.20932]
[1721151872727,2.87654,3476.4,3475.8,2.87701]
[1721151873040,5.31954,3476.4,3475.8,2.87701]
[1721151873409,5.31954,3476.4,3475.6,2.455]
[1721151873623,2.8768,3476.1,3475.3,2.87737]
[1721151874035,2.8768,3476.1,3475.4,2.87735]
[1721151875436,2.8768,3476.1,3475.3,2.87744]
[1721151875638,2.87695,3475.9,3475.2,5.907981]
[1721151875840,2.87704,3475.8,3475.1,2.8776]
[1721151876091,2.443,3475.7,3475.1,2.87758]
[1721151877020,2.87689,3476.0,3475.2,2.87752]
[1721151877233,2.87642,3476.6,3475.8,2.87702]
[1721151877426,2.87645,3476.5,3475.8,2.87702]
[1721151877947,2.87645,3476.5,3475.7,2.87706]
[1721151878125,2.87645,3476.5,3475.8,2.87698]
[1721151878447,2.87654,3476.4,3475.6,2.87713]
[1721151878655,2.87646,3476.5,3475.6,2.87718]
[1721151878810,2.87646,3476.5,3475.7,2.8771]
[1721151879014,5.17112,3476.7,3475.7,2.8771]
[1721151879015,5.17112,3476.7,3475.8,2.87695]
[1721151879312,1.80460719,3477.1,3475.9,2.87694]
[1721151879313,2.87622,3476.8,3475.9,2.87694]
[1721151879520,2.87622,3476.8,3476.1,2.87678]
[1721151879868,2.87631,3476.7,3476.0,2.87685]
[1721151880067,2.87631,3476.7,3476.0,2.87679]
[1721151880244,2.87631,3476.7,3476.1,3.18053769]
[1721151880752,2.87631,3476.7,3476.0,2.87685]
[1721151880953,5.17077,3477.1,3475.8,2.455]
[1721151881155,5.17077,3477.1,3476.4,2.87652]
[1721151881358,2.2948,3477.1,3476.4,2.87652]
[1721151881535,2.2851,3477.4,3476.6,2.87636]
[1721151881871,2.87585,3477.3,3476.6,2.87636]
[1721151882569,5.16082,3477.4,3476.6,2.87636]
[1721151882740,2.2851,3477.4,3476.8,2.8762]
[1721151882940,5.16081,3477.4,3476.6,5.75267]
[1721151883165,5.16081,3477.4,3476.6,2.87631]
[1721151883669,5.16081,3477.4,3476.7,2.87627]
[1721151884862,5.16081,3477.4,3476.6,2.87631]
[1721151885232,2.87588,3477.2,3476.1,2.455]
[1721151885450,2.87588,3477.2,3476.4,2.87646]
[1721151885661,2.87588,3477.2,3476.2,2.87667]
[1721151885868,2.2851,3477.0,3476.1,2.8767]
[1721151886053,2.87621,3476.8,3476.1,2.8767]
[1721151886229,2.87621,3476.8,3475.9,2.87688]
[1721151886578,2.87621,3476.8,3475.5,9.28732965]
[1721151886579,2.87646,3476.5,3475.5,9.28732965]
[1721151886768,2.87638,3476.6,3475.9,2.87688]
[1721151887069,2.87638,3476.6,3476.0,2.87686]
[1721151887627,2.87638,3476.6,3475.8,2.87695]
[1721151887865,2.87638,3476.6,3475.9,2.87694]
[1721151888369,2.87646,3476.5,3475.9,2.87694]
[1721151888662,2.87646,3476.5,3475.4,2.8773]
[1721151888663,2.4097,3476.4,3475.4,2.8773]
[1721151888863,2.87681,3476.1,3475.3,2.455]
[1721151889072,2.87681,3476.1,3475.3,5.33239]
[1721151889638,2.87681,3476.1,3475.4,2.87736]
[1721151890038,2.87674,3476.2,3475.5,2.87725]
[1721151890266,7.09403954,3476.4,3475.5,2.87725]
[1721151890267,5.28625,3476.4,3475.5,2.87725]
[1721151890564,2.4097,3476.4,3475.8,2.87701]
[1721151891477,2.4097,3476.4,3475.8,2.87697]
[1721151893053,5.28624,3476.4,3475.6,2.87717]
[1721151893768,5.28624,3476.4,3474.9,9.36592965]
[1721151893769,2.87681,3476.1,3474.9,9.36592965]
[1721151894078,2.87681,3476.1,3475.2,2.87748]
[1721151895192,2.87681,3476.1,3475.4,2.87731]
[1721151895398,2.87681,3476.1,3475.4,2.87729]
[1721151895758,2.87681,3476.1,3475.2,2.87748]
[1721151896459,2.87681,3476.1,3475.4,2.8773]
[1721151897273,2.8767,3476.3,3475.5,2.87722]
[1721151897473,2.8767,3476.3,3475.6,2.87719]
[1721151897677,2.87671,3476.2,3475.6,2.87719]
[1721151900100,2.4097,3476.4,3475.6,2.87719]
[1721151900404,5.28625,3476.4,3475.6,2.87719]
[1721151900704,2.87673,3476.2,3475.6,2.87719]
[1721151900878,5.28625,3476.4,3475.7,2.8771]
[1721151901201,5.28625,3476.4,3475.0,9.78857965]
[1721151901202,2.4331,3476.8,3476.2,2.87668]
[1721151901368,2.4331,3476.8,3476.3,2.8766]
[1721151902793,5.30931,3476.8,3476.0,2.87686]
[1721151902999,5.30931,3476.8,3476.1,2.87675]
[1721151903508,2.87612,3476.9,3475.5,6.91092965]
[1721151903509,2.87669,3476.3,3475.5,6.91092965]
[1721151903802,2.87679,3476.1,3475.3,2.455]
[1721151904003,2.87679,3476.1,3475.4,2.8773]
[1721151904181,2.87669,3476.3,3475.5,2.4996]
[1721151904381,2.87669,3476.3,3475.6,2.87716]
[1721151905213,2.87669,3476.3,3475.6,2.87712]
[1721151905421,2.87665,3476.3,3475.7,2.87709]
[1721151907776,1.80621603,3476.6,3475.3,2.455]
[1721151907982,1.80621603,3476.9,3476.4,2.8765]
[1721151908176,4.68288468,3477.0,3476.3,2.87659]
[1721151908377,1.80681468,3476.9,3476.3,2.87659]
[1721151908571,1.80681468,3476.9,3476.4,2.87651]
[1721151909174,2.87633,3476.7,3476.0,5.75359]
[1721151909483,4.68314468,3476.7,3476.0,2.87679]
[1721151909685,2.87662,3476.3,3475.4,2.87732]
[1721151909979,2.8767,3476.2,3475.2,2.87749]
[1721151910178,2.87679,3476.1,3475.5,2.87726]
[1721151910379,2.87679,3476.1,3475.0,2.3455]
[1721151910380,5.27207,3476.0,3475.3,2.87739]
[1721151910609,5.27207,3476.0,3475.3,2.87738]
[1721151910790,5.27207,3476.0,3475.4,2.87733]
[1721151911086,4.68352468,3476.2,3475.4,2.87733]
[1721151911297,2.87675,3476.2,3475.6,2.87718]
[1721151911498,4.68607687,3476.2,3475.6,2.87718]
[1721151911781,1.80932687,3476.1,3475.6,2.87718]
[1721151912102,1.80932687,3476.2,3475.6,2.87718]
[1721151912299,1.80932687,3476.3,3475.6,3.452631]
[1721151912613,1.80932687,3476.4,3475.8,2.87696]
[1721151912812,1.80932687,3476.3,3475.6,2.8772]
[1721151913003,1.80932687,3476.4,3476.0,2.87681]
[1721151913509,1.80932687,3476.4,3476.0,5.75363]
[1721151913709,1.80932687,3476.4,3476.1,2.87675]
[1721151913916,1.80932687,3476.5,3476.1,3.452106]
[1721151914206,1.80932687,3476.5,3476.2,2.8767]
[1721151914411,2.2806,3476.7,3476.2,2.8767]
[1721151914611,1.81109439,3476.6,3476.2,2.8767]
[1721151914786,1.81109439,3476.6,3476.3,2.87661]
[1721151915279,1.811012,3476.6,3476.3,2.87661]
[1721151916395,1.811012,3476.5,3476.2,2.8767]
[1721151916620,1.811012,3476.6,3476.2,2.8767]
[1721151916796,1.811012,3476.6,3476.0,2.87685]
[1721151916980,2.8763,3476.7,3476.0,2.87685]
[1721151916981,1.811012,3476.5,3476.0,2.87685]
[1721151917322,1.811012,3476.5,3475.8,2.87702]
[1721151917323,1.811012,3476.4,3475.8,2.87702]
[1721151917528,2.3972,3476.3,3475.8,2.87702]
[1721151917824,2.3972,3476.3,3475.6,2.87719]
[1721151917825,4.20851836,3476.3,3475.6,2.87719]
[1721151918033,4.68806836,3476.2,3475.5,6.91092965]
[1721151918212,4.68806836,3476.2,3475.6,2.87715]
[1721151918519,1.81131836,3476.1,3475.6,2.87715]
[1721151918721,1.81131836,3476.0,3475.6,2.87715]
[1721151918923,1.81131836,3476.0,3475.2,2.87749]
[1721151919107,1.81131836,3476.0,3475.2,3.9523349]
[1721151919108,1.81131836,3475.9,3475.2,3.9523349]
[1721151919317,2.87687,3476.0,3475.6,2.87719]
[1721151919318,1.81131836,3476.0,3475.6,2.87719]
[1721151919501,1.81131836,3476.1,3475.6,2.87719]
[1721151920232,1.81131836,3476.1,3475.3,2.455]
[1721151920409,1.81131836,3476.5,3476.3,2.87662]
[1721151920609,3.00321238,3477.5,3476.7,2.87625]
[1721151920814,4.98820506,3477.5,3476.8,2.87614]
[1721151921102,4.98820506,3477.5,3476.9,2.87612]
[1721151921338,2.87564,3477.5,3476.9,2.87612]
[1721151921497,7.37550506,3477.6,3477.0,2.87603]
[1721151922028,7.37550506,3477.6,3476.8,2.87614]
[1721151922193,7.37550506,3477.6,3476.9,2.87608]
[1721151922395,7.37550506,3477.6,3477.0,2.87603]
[1721151923228,7.37550506,3477.6,3476.8,2.87614]
[1721151923526,7.37550506,3477.6,3476.9,2.87609]
[1721151923693,2.3874,3477.6,3477.1,2.87595]
[1721151924518,2.87544,3477.8,3477.1,2.87595]
[1721151924691,7.27755384,3477.9,3477.2,2.87587]
[1721151924910,2.87547,3477.7,3476.9,2.87608]
[1721151925431,7.27758384,3477.9,3477.1,2.8759]
[1721151925601,2.8754,3477.8,3477.1,2.8759]
[1721151926134,2.87546,3477.7,3477.1,2.8759]
[1721151927409,2.87546,3477.7,3476.9,2.87608]
[1721151927615,4.9856297,3477.8,3476.7,2.87626]
[1721151927825,2.8758,3477.3,3476.5,6.91092965]
[1721151928127,2.87572,3477.4,3476.7,2.87622]
[1721151928544,2.87566,3477.5,3476.7,2.87622]
[1721151928710,2.87577,3477.4,3476.7,2.87622]
[1721151929496,2.87572,3477.4,3476.8,2.87619]
[1721151929909,2.8758,3477.3,3476.6,5.19775]
[1721151930632,2.87596,3477.1,3476.5,6.91092965]
[1721151930998,2.87606,3477.0,3476.5,6.91092965]
[1721151931604,2.87618,3476.9,3476.0,5.24725]
[1721151931937,2.87618,3476.9,3475.8,2.87702]
[1721151931938,2.8765,3476.5,3475.8,2.87703]
[1721151932338,2.8765,3476.5,3475.7,6.91092965]
[1721151932339,0.05192719,3476.4,3475.7,6.91092965]
[1721151932832,0.05192719,3476.4,3475.8,2.87703]
[1721151933039,2.92846719,3476.4,3475.8,2.87703]
[1721151933239,2.92846719,3476.4,3475.7,6.91092965]
[1721151933411,2.92846719,3476.4,3475.8,1.21584597]
[1721151933614,2.87663,3476.3,3475.7,6.91092965]
[1721151934015,2.8767,3476.2,3475.7,6.91092965]
[1721151934219,2.92844726,3476.2,3475.5,5.24764]
[1721151934619,2.92844726,3476.2,3475.6,2.87719]
[1721151934816,0.05174726,3476.2,3475.6,2.87719]
[1721151935218,0.05174726,3476.2,3475.7,2.87711]
[1721151935836,0.05174726,3476.2,3475.6,0.812491]
[1721151936061,0.05174726,3476.2,3475.2,2.455]
[1721151936062,2.92844726,3476.2,3475.2,5.33252]
[1721151936266,2.87708,3475.8,3475.1,6.91092965]
[1721151936470,2.87708,3475.8,3475.1,9.78852965]
[1721151936906,2.92870459,3475.7,3475.1,6.91092965]
[1721151937108,2.8772,3475.6,3475.1,6.91092965]
[1721151937333,2.92872836,3475.6,3475.1,6.91092965]
[1721151937530,2.87729,3475.5,3475.1,6.91092965]
[1721151937730,2.92708639,3475.5,3474.8,2.87785]
[1721151937932,2.92708639,3475.5,3474.8,3.453422]
[1721151938136,2.87737,3475.4,3474.8,3.453422]
[1721151938337,2.87737,3475.4,3474.8,2.87785]
[1721151938656,0.04979639,3475.3,3474.7,2.87793]
[1721151938830,0.04979639,3475.3,3474.8,2.87784]
[1721151939041,2.87729,3475.5,3474.8,2.87784]
[1721151939345,2.8772,3475.6,3474.5,2.87807]
[1721151939522,0.04974215,3475.2,3474.6,1.45581997]
[1721151939847,2.87738,3475.4,3474.6,4.33383997]
[1721151940059,2.87738,3475.4,3474.7,2.87793]
[1721151940258,0.04966379,3475.3,3474.7,2.87793]
[1721151940640,0.04966379,3475.3,3474.6,1.45581997]
[1721151940955,0.04966379,3475.3,3474.7,2.87792]
[1721151941256,0.04966379,3475.3,3474.7,1.41227196]
[1721151941466,2.92711379,3475.3,3474.7,1.41227196]
[1721151941675,2.92711379,3475.3,3474.6,1.45581997]
[1721151941829,2.92711379,3475.3,3474.4,6.91092965]
[1721151941830,2.87769,3475.0,3474.4,6.91092965]
[1721151942157,2.87796,3474.7,3473.9,2.8786]
[1721151942358,2.87796,3474.7,3474.0,1.09973492]
[1721151942557,0.04965172,3474.6,3473.8,6.91092965]
[1721151942759,2.87837,3474.2,3473.4,6.91092965]
[1721151942959,2.87837,3474.2,3473.6,2.87885]
[1721151943158,0.04965172,3474.1,3473.6,2.87885]
[1721151943385,0.04965172,3474.1,3473.4,2.87896]
[1721151943530,0.04965172,3474.1,3473.5,3.45502105]
[1721151943730,0.04965172,3474.1,3473.5,0.57614105]
[1721151944343,0.04965172,3474.1,3474.0,5.75704]
[1721151944637,0.04965172,3474.1,3473.8,2.87864]
[1721151944638,2.87715,3475.7,3474.8,2.87784]
[1721151944866,0.04627341,3475.6,3475.1,2.87761]
[1721151945035,0.04627341,3475.6,3475.1,0.575542]
[1721151945240,2.87676,3476.2,3475.2,2.8775]
[1721151945559,1.80544317,3476.3,3475.2,2.87752]
[1721151945560,2.87704,3475.8,3475.2,2.87752]
[1721151945762,2.877,3475.9,3475.2,2.87752]
[1721151945942,2.877,3475.9,3474.9,2.455]
[1721151945943,2.87706,3475.8,3475.0,2.87763]
[1721151946131,2.92327307,3475.8,3475.0,2.87763]
[1721151946332,2.92327307,3475.8,3474.5,2.87806]
[1721151946333,2.87728,3475.6,3474.4,5.5869]
[1721151946567,2.87728,3475.6,3474.9,2.87778]
[1721151946738,0.04630354,3475.5,3474.9,2.87778]
[1721151947059,2.87672,3476.2,3475.1,2.87759]
[1721151947268,0.04630354,3475.4,3475.3,2.87742]
[1721151947449,2.87683,3476.1,3475.3,3.452921]
[1721151947767,2.87683,3476.1,3475.3,2.87742]
[1721151947768,0.04630354,3475.4,3475.3,2.87742]
[1721151947930,2.87675,3476.2,3475.4,2.87734]
[1721151948345,2.87679,3476.1,3475.4,2.87734]
[1721151948662,2.87688,3476.0,3475.2,2.87746]
[1721151948866,1.80511725,3476.3,3475.6,2.87719]
[1721151949033,2.87665,3476.3,3475.6,2.87719]
[1721151949233,2.87671,3476.2,3475.5,2.87727]
[1721151949640,2.87671,3476.2,3475.6,2.8772]
[1721151949859,2.87684,3476.1,3475.2,2.8775]
[1721151950062,2.87671,3476.2,3475.2,2.87747]
[1721151950363,2.87671,3476.2,3474.8,6.91092965]
[1721151950364,2.87691,3476.0,3475.3,2.87744]
[1721151950668,2.87679,3476.1,3475.3,2.87744]
[1721151951172,2.87687,3476.0,3475.4,2.87736]
[1721151952036,2.87687,3476.0,3475.3,2.87744]
[1721151952227,2.3604,3476.4,3474.8,6.91092965]
[1721151952228,2.8772,3475.6,3474.8,9.78877965]
[1721151952428,2.8772,3475.6,3474.9,0.97887797]
[1721151952675,2.87729,3475.5,3474.6,2.87802]
[1721151952829,2.4739,3475.5,3474.6,2.87802]
[1721151953184,2.87742,3475.4,3474.6,2.87802]
[1721151953479,2.87761,3475.2,3474.2,9.78921965]
[1721151953638,2.87777,3475.0,3474.2,9.78927965]
[1721151953983,2.87776,3475.0,3474.3,2.87826]
[1721151954172,2.87779,3474.9,3474.3,2.87826]
[1721151954482,2.87767,3475.1,3474.3,2.87826]
[1721151954772,2.4739,3475.5,3474.1,5.7568]
[1721151954773,2.87778,3474.9,3474.1,5.7568]
[1721151954987,2.87778,3474.9,3474.1,2.87837]
[1721151955344,2.87778,3474.9,3474.2,2.87831]
[1721151955533,2.87778,3474.9,3474.1,2.87837]
[1721151955733,2.87778,3474.9,3474.2,2.87834]
[1721151956379,2.87787,3474.8,3474.0,2.87846]
[1721151956872,2.87817,3474.5,3473.8,2.87868]
[1721151957447,2.87819,3474.4,3473.8,2.87868]
[1721151957863,2.87812,3474.5,3473.9,2.8786]
[1721151958061,2.87793,3474.8,3474.0,2.87845]
[1721151958479,2.87794,3474.7,3474.0,2.87845]